fUST/lending_fUST_20250723
["ID","MTS","AMOUNT","RATE_DAILY","PERIOD"]
[374314246,1753272643457,-460.0,0.00019452,2]
[374314248,1753272643467,-460.0,0.00019452,2]
[374314251,1753272643477,-460.0,0.00019452,2]
[374314253,1753272643487,-460.0,0.00019452,2]
[374314270,1753272643651,-461.5,0.00019452,2]
[374314272,1753272643662,-460.0,0.00019452,2]
[374314274,1753272643671,-460.0,0.00019452,2]
[374314276,1753272643681,-460.0,0.00019452,2]
[374314278,1753272643691,-683.42,0.00019452,2]
[374314280,1753272643700,-3164.69,0.00019452,2]
[374314282,1753272643710,-2105.65,0.00019452,2]
[374314284,1753272643719,-3752.66,0.00019452,2]
[374314286,1753272643729,-460.0,0.00019452,2]
[374314289,1753272643748,-460.0,0.00019452,2]
[374314292,1753272643760,-460.0,0.00019452,2]
[374314294,1753272643770,-581.42,0.00019452,2]
[374314296,1753272643780,-460.0,0.00019452,2]
[374314298,1753272643790,-460.0,0.00019452,2]
[374314300,1753272643800,-460.0,0.00019452,2]
[374314302,1753272643810,-3085.48,0.00019452,2]
[374314304,1753272643820,-460.0,0.00019452,2]
[374314306,1753272643830,-460.0,0.00019452,2]
[374314308,1753272643840,-540.38,0.00019452,2]
[374314310,1753272643850,-2265.8,0.00019452,2]
[374314313,1753272643861,-10746.08,0.00019452,2]
[374314315,1753272643871,-460.0,0.00019452,2]
[374314317,1753272643880,-552.36,0.00019452,2]
[374314318,1753272643890,-460.0,0.00019452,2]
[374314321,1753272643900,-1176.7,0.00019452,2]
[374314323,1753272643910,-460.0,0.00019452,2]
[374314325,1753272643920,-460.0,0.00019452,2]
[374314327,1753272643930,-460.0,0.00019452,2]
[374314329,1753272643940,-460.0,0.00019452,2]
[374314331,1753272643949,-460.0,0.00019452,2]
[374314333,1753272643959,-460.0,0.00019452,2]
[374314335,1753272643969,-460.0,0.00019452,2]
[374314337,1753272643978,-1435.46,0.00019452,2]
[374314339,1753272643988,-1233.45,0.00019452,2]
[374314341,1753272643998,-460.0,0.00019452,2]
[374314343,1753272644008,-460.0,0.00019452,2]
[374314345,1753272644017,-460.0,0.00019452,2]
[374314347,1753272644028,-677.42,0.00019452,2]
[374314350,1753272644038,-460.0,0.00019452,2]
[374314352,1753272644048,-460.0,0.00019452,2]
[374314354,1753272644057,-3360.5,0.00019452,2]
[374314356,1753272644067,-460.0,0.00019452,2]
[374314358,1753272644076,-460.0,0.00019452,2]
[374314360,1753272644086,-2827.93,0.00019452,2]
[374314362,1753272644096,-460.0,0.00019452,2]
[374314364,1753272644106,-3104.36,0.00019452,2]
[374314366,1753272644116,-460.0,0.00019452,2]
[374314368,1753272644126,-460.0,0.00019452,2]
[374314370,1753272644136,-460.0,0.00019452,2]
[374314372,1753272644146,-460.0,0.00019452,2]
[374314374,1753272644155,-460.0,0.00019452,2]
[374314376,1753272644165,-460.0,0.00019452,2]
[374314378,1753272644175,-460.0,0.00019452,2]
[374314380,1753272644185,-460.0,0.00019452,2]
[374314382,1753272644194,-460.0,0.00019452,2]
[374314384,1753272644204,-460.0,0.00019452,2]
[374314387,1753272644214,-460.0,0.00019452,2]
[374314389,1753272644223,-1092.94,0.00019452,2]
[374314391,1753272644233,-460.0,0.00019452,2]
[374314393,1753272644243,-460.0,0.00019452,2]
[374314395,1753272644253,-460.0,0.00019452,2]
[374314397,1753272644262,-475.66841129,0.00019452,2]
[374314399,1753272644272,-1030.41,0.00019452,2]
[374314401,1753272644282,-460.0,0.00019452,2]
[374314403,1753272644292,-460.0,0.00019452,2]
[374314405,1753272644301,-460.0,0.00019452,2]
[374314407,1753272644312,-460.0,0.00019452,2]
[374314409,1753272644321,-460.0,0.00019452,2]
[374314411,1753272644331,-460.0,0.00019452,2]
[374314413,1753272644340,-7214.65,0.00019452,2]
[374314415,1753272644350,-460.0,0.00019452,2]
[374314417,1753272644360,-460.0,0.00019452,2]
[374314419,1753272644369,-291.63544391,0.00019452,2]
[374314421,1753272644378,-460.0,0.00019452,2]
[374314423,1753272644388,-2044.46,0.00019452,2]
[374314425,1753272644398,-460.0,0.00019452,2]
[374314428,1753272644408,-2917.19,0.00019452,2]
[374314430,1753272644418,-460.0,0.00019452,2]
[374314432,1753272644432,-2380.52,0.00019452,2]
[374314434,1753272644441,-460.0,0.00019452,2]
[374314436,1753272644451,-500.56085246,0.00019473,2]
[374314438,1753272644460,-500.0,0.00019473,2]
[374314440,1753272644469,-500.0,0.00019473,2]
[374314442,1753272644479,-3452.49897909,0.00019502,2]
[374314444,1753272644488,-172.0,0.00019589,3]
[374314446,1753272644497,-151.0,0.000196,2]
[374314448,1753272644507,-612.94232505,0.00019637,2]
[374314450,1753272644520,-2451.7693002,0.00019637,2]
[374314452,1753272644529,-5516.48092544,0.00019637,2]
[374314454,1753272644539,-9797.27012359,0.00019637,2]
[374314457,1753272644550,-151.0,0.000197,2]
[374314459,1753272644560,-500.0,0.00019721,2]
[374314461,1753272644570,-1000.0,0.00019721,2]
[374314463,1753272644579,-1000.0,0.00019721,2]
[374314465,1753272644590,-500.9714425,0.00019721,2]
[374314467,1753272644600,-503.04396683,0.00019721,2]
[374314469,1753272644612,-1000.0,0.00019721,2]
[374314471,1753272644621,-1000.0,0.00019721,2]
[374314473,1753272644631,-1000.0,0.00019721,2]
[374314475,1753272644640,-500.0,0.00019721,2]
[374314477,1753272644650,-468.26958415,0.00019725,2]
[374314479,1753272644660,-460.0,0.00019726,2]
[374314481,1753272644669,-331.82162465,0.00019726,2]
[374314483,1753272644679,-460.0,0.00019726,2]
[374314485,1753272644688,-460.0,0.00019726,2]
[374314487,1753272644698,-460.0,0.00019726,2]
[374314489,1753272644708,-460.0,0.00019726,2]
[374314491,1753272644717,-460.0,0.00019726,2]
[374314494,1753272644726,-464.75774092,0.00019726,2]
[374314495,1753272644735,-460.0,0.00019726,2]
[374314498,1753272644744,-460.0,0.00019726,2]
[374314500,1753272644754,-460.0,0.00019726,2]
[374314502,1753272644763,-460.0,0.00019726,2]
[374314504,1753272644773,-460.0,0.00019726,2]
[374314506,1753272644782,-460.0,0.00019726,2]
[374314508,1753272644791,-460.0,0.00019726,2]
[374314510,1753272644801,-460.0,0.00019726,2]
[374314512,1753272644810,-416.66843919,0.00019726,2]
[374314514,1753272644823,-460.0,0.00019726,2]
[374314516,1753272644833,-460.0,0.00019726,2]
[374314518,1753272644842,-464.2059696,0.00019726,2]
[374314521,1753272644856,-460.0,0.00019726,2]
[374314523,1753272644866,-460.0,0.00019726,2]
[374314525,1753272644875,-460.0,0.00019726,2]
[374314527,1753272644885,-1296.64,0.00019726,2]
[374314529,1753272644894,-195.41023623,0.00019726,2]
[374314531,1753272644904,-460.0,0.00019726,2]
[374314533,1753272644913,-460.0,0.00019726,2]
[374314535,1753272644923,-460.0,0.00019726,2]
[374314537,1753272644933,-460.0,0.00019726,2]
[374314539,1753272644948,-460.0,0.00019726,2]
[374314541,1753272644967,-460.0,0.00019726,2]
[374314543,1753272644979,-460.0,0.00019726,2]
[374314545,1753272644988,-743.52,0.00019726,2]
[374314547,1753272644997,-460.0,0.00019726,2]
[374314549,1753272645007,-460.0,0.00019726,2]
[374314551,1753272645016,-575.88,0.00019726,2]
[374314553,1753272645025,-472.37713478,0.00019726,2]
[374314555,1753272645034,-460.0,0.00019726,2]
[374314557,1753272645044,-460.0,0.00019726,2]
[374314559,1753272645053,-464.33747465,0.00019726,2]
[374314561,1753272645063,-460.0,0.00019726,2]
[374314563,1753272645072,-518.21,0.00019726,2]
[374314565,1753272645082,-460.0,0.00019726,2]
[374314567,1753272645091,-460.0,0.00019726,2]
[374314569,1753272645100,-460.0,0.00019726,2]
[374314571,1753272645111,-460.0,0.00019726,2]
[374314573,1753272645120,-460.0,0.00019726,2]
[374314575,1753272645130,-460.0,0.00019726,2]
[374314577,1753272645139,-460.0,0.00019726,2]
[374314580,1753272645149,-541.9,0.00019726,2]
[374314582,1753272645159,-460.0,0.00019726,2]
[374314584,1753272645168,-460.0,0.00019726,2]
[374314585,1753272645178,-460.0,0.00019726,2]
[374314588,1753272645187,-460.0,0.00019726,2]
[374314590,1753272645197,-460.0,0.00019726,2]
[374314592,1753272645207,-460.0,0.00019726,2]
[374314594,1753272645216,-460.0,0.00019726,2]
[374314596,1753272645226,-460.0,0.00019726,2]
[374314597,1753272645235,-460.0,0.00019726,2]
[374314600,1753272645245,-460.0,0.00019726,2]
[374314601,1753272645254,-460.0,0.00019726,2]
[374314604,1753272645264,-460.0,0.00019726,2]
[374314605,1753272645273,-312.62435633,0.00019726,2]
[374314608,1753272645283,-159.13280513,0.00019726,2]
[374314610,1753272645293,-460.0,0.00019726,2]
[374314612,1753272645302,-460.0,0.00019726,2]
[374314614,1753272645312,-602.28,0.00019726,2]
[374314616,1753272645321,-460.0,0.00019726,2]
[374314618,1753272645331,-460.0,0.00019726,2]
[374314620,1753272645340,-460.0,0.00019726,2]
[374314622,1753272645349,-460.0,0.00019726,2]
[374314624,1753272645362,-460.0,0.00019726,2]
[374314626,1753272645372,-460.0,0.00019726,2]
[374314628,1753272645381,-465.73,0.00019726,2]
[374314630,1753272645391,-460.0,0.00019726,2]
[374314632,1753272645400,-460.0,0.00019726,2]
[374314634,1753272645410,-460.0,0.00019726,2]
[374314636,1753272645419,-622.8,0.00019726,2]
[374314638,1753272645429,-460.0,0.00019726,2]
[374314640,1753272645439,-460.0,0.00019726,2]
[374314642,1753272645449,-460.0,0.00019726,2]
[374314644,1753272645459,-460.0,0.00019726,2]
[374314646,1753272645468,-461.5,0.00019726,2]
[374314648,1753272645478,-460.0,0.00019726,2]
[374314650,1753272645487,-683.42,0.00019726,2]
[374314652,1753272645498,-3164.69,0.00019726,2]
[374314654,1753272645508,-2105.65,0.00019726,2]
[374314656,1753272645522,-3752.66,0.00019726,2]
[374314658,1753272645532,-460.0,0.00019726,2]
[374314660,1753272645541,-414.60935783,0.00019726,2]
[374314662,1753272645551,-460.0,0.00019726,2]
[374314664,1753272645562,-581.42,0.00019726,2]
[374314667,1753272645572,-460.0,0.00019726,2]
[374314669,1753272645582,-460.0,0.00019726,2]
[374314671,1753272645591,-3085.48,0.00019726,2]
[374314673,1753272645602,-460.0,0.00019726,2]
[374314675,1753272645616,-460.0,0.00019726,2]
[374314677,1753272645625,-540.38,0.00019726,2]
[374314679,1753272645635,-2265.8,0.00019726,2]
[374314681,1753272645644,-10746.08,0.00019726,2]
[374314683,1753272645653,-460.0,0.00019726,2]
[374314685,1753272645664,-552.36,0.00019726,2]
[374314687,1753272645673,-460.0,0.00019726,2]
[374314689,1753272645683,-1176.7,0.00019726,2]
[374314691,1753272645692,-460.0,0.00019726,2]
[374314693,1753272645701,-460.0,0.00019726,2]
[374314695,1753272645711,-460.0,0.00019726,2]
[374314697,1753272645720,-460.0,0.00019726,2]
[374314699,1753272645729,-460.0,0.00019726,2]
[374314701,1753272645740,-460.0,0.00019726,2]
[374314703,1753272645752,-1233.45,0.00019726,2]
[374314705,1753272645762,-1435.46,0.00019726,2]
[374314707,1753272645771,-460.0,0.00019726,2]
[374314709,1753272645781,-460.0,0.00019726,2]
[374314711,1753272645791,-460.0,0.00019726,2]
[374314713,1753272645800,-677.42,0.00019726,2]
[374314715,1753272645809,-460.0,0.00019726,2]
[374314717,1753272645819,-3360.5,0.00019726,2]
[374314719,1753272645828,-460.0,0.00019726,2]
[374314721,1753272645838,-460.0,0.00019726,2]
[374314723,1753272645847,-2827.93,0.00019726,2]
[374314725,1753272645857,-489.8824245,0.00019726,2]
[374314727,1753272645868,-3104.36,0.00019726,2]
[374314729,1753272645878,-460.0,0.00019726,2]
[374314731,1753272645887,-460.0,0.00019726,2]
[374314733,1753272645896,-460.0,0.00019726,2]
[374314735,1753272645906,-460.0,0.00019726,2]
[374314737,1753272645915,-182.25961016,0.00019726,2]
[374314739,1753272645925,-460.0,0.00019726,2]
[374314741,1753272645934,-460.0,0.00019726,2]
[374314743,1753272645944,-460.0,0.00019726,2]
[374314745,1753272645953,-1092.94,0.00019726,2]
[374314747,1753272645963,-193.0448841,0.00019726,2]
[374314749,1753272645972,-460.0,0.00019726,2]
[374314751,1753272645981,-1030.41,0.00019726,2]
[374314753,1753272645991,-460.0,0.00019726,2]
[374314755,1753272646000,-460.0,0.00019726,2]
[374314757,1753272646009,-460.0,0.00019726,2]
[374314759,1753272646018,-460.0,0.00019726,2]
[374314761,1753272646027,-460.0,0.00019726,2]
[374314763,1753272646036,-7214.65,0.00019726,2]
[374314765,1753272646046,-460.0,0.00019726,2]
[374314767,1753272646055,-460.0,0.00019726,2]
[374314769,1753272646064,-460.0,0.00019726,2]
[374314771,1753272646074,-2044.46,0.00019726,2]
[374314773,1753272646083,-2917.19,0.00019726,2]
[374314776,1753272646093,-460.0,0.00019726,2]
[374314777,1753272646102,-209.10272163,0.00019726,2]
[374314779,1753272646113,-2380.52,0.00019726,2]
[374314782,1753272646123,-500.0,0.00019732,2]
[374314784,1753272646133,-6116.23401393,0.00019763,2]
[374314785,1753272646142,-256.05206244,0.00019767,2]
[374314788,1753272646152,-509.00930952,0.00019819,2]
[374314789,1753272646162,-500.0,0.00019885,2]
[374314792,1753272646172,-502.30893642,0.00019895,2]
[374314794,1753272646182,-3000.0,0.000199,2]
[374314796,1753272646191,-151.0,0.000199,2]
[374314798,1753272646201,-500.0,0.00019903,2]
[374314800,1753272646211,-3000.0,0.0001991,2]
[374314802,1753272646220,-501.99924546,0.00019911,2]
[374314804,1753272646229,-3000.0,0.0001992,2]
[374314806,1753272646238,-3000.0,0.0001993,2]
[374314808,1753272646247,-3000.0,0.0001994,2]
[374314810,1753272646256,-3000.0,0.0001995,2]
[374314812,1753272646265,-3000.0,0.0001996,2]
[374314814,1753272646275,-3000.0,0.0001997,2]
[374314816,1753272646284,-500.0,0.00019973,2]
[374314818,1753272646294,-500.0,0.00019973,2]
[374314820,1753272646303,-500.0,0.00019973,2]
[374314822,1753272646313,-500.0,0.00019973,2]
[374314824,1753272646322,-274.27384637,0.00019973,2]
[374314826,1753272646332,-280.22416713,0.00019973,2]
[374314828,1753272646341,-3452.49897909,0.00019973,2]
[374314830,1753272646350,-3000.0,0.0001998,2]
[374314832,1753272646360,-3000.0,0.0001999,2]
[374314834,1753272646370,-3000.0,0.0002,2]
[374314836,1753272646379,-329.1904351,0.0002,2]
[374314851,1753272646518,-460.0,0.0002,2]
[374314853,1753272646528,-460.0,0.0002,2]
[374314855,1753272646539,-460.0,0.0002,2]
[374314857,1753272646548,-460.0,0.0002,2]
[374314859,1753272646558,-460.0,0.0002,2]
[374314861,1753272646568,-460.0,0.0002,2]
[374314863,1753272646577,-460.0,0.0002,2]
[374314865,1753272646587,-460.0,0.0002,2]
[374314867,1753272646597,-519.03080719,0.0002,2]
[374314869,1753272646608,-460.0,0.0002,2]
[374314871,1753272646618,-460.0,0.0002,2]
[374314873,1753272646627,-460.0,0.0002,2]
[374314875,1753272646639,-460.0,0.0002,2]
[374314877,1753272646648,-460.0,0.0002,2]
[374314879,1753272646658,-460.0,0.0002,2]
[374314881,1753272646667,-1296.64,0.0002,2]
[374314883,1753272646676,-460.0,0.0002,2]
[374314885,1753272646686,-460.0,0.0002,2]
[374314887,1753272646695,-460.0,0.0002,2]
[374314889,1753272646705,-460.0,0.0002,2]
[374314891,1753272646715,-460.0,0.0002,2]
[374314893,1753272646724,-743.52,0.0002,2]
[374314895,1753272646734,-460.0,0.0002,2]
[374314897,1753272646743,-460.0,0.0002,2]
[374314899,1753272646752,-575.88,0.0002,2]
[374314901,1753272646762,-495.24112983,0.0002,2]
[374314903,1753272646774,-460.0,0.0002,2]
[374314905,1753272646783,-518.21,0.0002,2]
[374314907,1753272646792,-197.09982549,0.0002,2]
[374314908,1753272646802,-460.0,0.0002,2]
[374314910,1753272646811,-460.0,0.0002,2]
[374314912,1753272646820,-460.0,0.0002,2]
[374314914,1753272646830,-418.82121395,0.0002,2]
[374314916,1753272646839,-460.0,0.0002,2]
[374314918,1753272646848,-460.0,0.0002,2]
[374314920,1753272646857,-541.9,0.0002,2]
[374314922,1753272646867,-460.0,0.0002,2]
[374314924,1753272646879,-460.0,0.0002,2]
[374314926,1753272646888,-460.0,0.0002,2]
[374314928,1753272646897,-460.0,0.0002,2]
[374314930,1753272646907,-460.0,0.0002,2]
[374314932,1753272646916,-460.0,0.0002,2]
[374314934,1753272646926,-460.0,0.0002,2]
[374314936,1753272646935,-460.0,0.0002,2]
[374314938,1753272646944,-460.0,0.0002,2]
[374314940,1753272646954,-460.0,0.0002,2]
[374314942,1753272646963,-602.28,0.0002,2]
[374314944,1753272646972,-460.0,0.0002,2]
[374314946,1753272646981,-460.0,0.0002,2]
[374314948,1753272646991,-460.0,0.0002,2]
[374314950,1753272646999,-460.0,0.0002,2]
[374314952,1753272647009,-460.0,0.0002,2]
[374314954,1753272647018,-465.73,0.0002,2]
[374314956,1753272647027,-460.0,0.0002,2]
[374314958,1753272647036,-460.0,0.0002,2]
[374314960,1753272647046,-622.8,0.0002,2]
[374314962,1753272647055,-460.0,0.0002,2]
[374314964,1753272647064,-460.0,0.0002,2]
[374314966,1753272647073,-460.0,0.0002,2]
[374314968,1753272647083,-460.0,0.0002,2]
[374314969,1753272647092,-461.5,0.0002,2]
[374314971,1753272647101,-460.0,0.0002,2]
[374314973,1753272647112,-683.42,0.0002,2]
[374314975,1753272647122,-3164.69,0.0002,2]
[374314977,1753272647131,-2105.65,0.0002,2]
[374314979,1753272647141,-3752.66,0.0002,2]
[374314981,1753272647150,-460.0,0.0002,2]
[374314983,1753272647159,-460.0,0.0002,2]
[374314985,1753272647169,-581.42,0.0002,2]
[374314987,1753272647178,-460.0,0.0002,2]
[374314989,1753272647187,-460.0,0.0002,2]
[374314991,1753272647196,-3085.48,0.0002,2]
[374314993,1753272647206,-460.0,0.0002,2]
[374314995,1753272647215,-203.81716611,0.0002,2]
[374314997,1753272647224,-540.38,0.0002,2]
[374314999,1753272647233,-2265.8,0.0002,2]
[374315001,1753272647242,-10746.08,0.0002,2]
[374315003,1753272647252,-460.0,0.0002,2]
[374315005,1753272647261,-552.36,0.0002,2]
[374315007,1753272647270,-1176.7,0.0002,2]
[374315009,1753272647279,-460.0,0.0002,2]
[374315011,1753272647288,-460.0,0.0002,2]
[374315013,1753272647298,-460.0,0.0002,2]
[374315015,1753272647307,-460.0,0.0002,2]
[374315016,1753272647316,-460.0,0.0002,2]
[374315018,1753272647325,-1233.45,0.0002,2]
[374315020,1753272647334,-1435.46,0.0002,2]
[374315022,1753272647343,-460.0,0.0002,2]
[374315024,1753272647352,-460.0,0.0002,2]
[374315026,1753272647362,-677.42,0.0002,2]
[374315028,1753272647371,-460.0,0.0002,2]
[374315030,1753272647380,-3360.5,0.0002,2]
[374315032,1753272647389,-460.0,0.0002,2]
[374315034,1753272647398,-2827.93,0.0002,2]
[374315036,1753272647408,-3104.36,0.0002,2]
[374315038,1753272647417,-460.0,0.0002,2]
[374315040,1753272647428,-460.0,0.0002,2]
[374315042,1753272647437,-460.0,0.0002,2]
[374315043,1753272647446,-527.35245545,0.0002,2]
[374315045,1753272647455,-460.0,0.0002,2]
[374315047,1753272647465,-460.0,0.0002,2]
[374315049,1753272647474,-460.0,0.0002,2]
[374315051,1753272647483,-1092.94,0.0002,2]
[374315053,1753272647492,-460.0,0.0002,2]
[374315055,1753272647501,-1030.41,0.0002,2]
[374315057,1753272647511,-460.0,0.0002,2]
[374315059,1753272647524,-460.0,0.0002,2]
[374315061,1753272647533,-460.0,0.0002,2]
[374315063,1753272647542,-460.0,0.0002,2]
[374315065,1753272647551,-7214.65,0.0002,2]
[374315067,1753272647562,-460.0,0.0002,2]
[374315069,1753272647571,-460.0,0.0002,2]
[374315071,1753272647580,-2044.46,0.0002,2]
[374315073,1753272647591,-460.0,0.0002,2]
[374315074,1753272647601,-2917.19,0.0002,2]
[374315076,1753272647611,-3000.0,0.0002001,2]
[374315078,1753272647621,-3000.0,0.0002002,2]
[374315080,1753272647630,-3000.0,0.0002003,2]
[374315082,1753272647640,-3000.0,0.0002004,2]
[374315084,1753272647649,-3452.49897909,0.00020044,2]
[374315086,1753272647658,-3000.0,0.0002005,2]
[374315088,1753272647668,-3000.0,0.0002006,2]
[374315090,1753272647677,-3000.0,0.0002007,2]
[374315092,1753272647686,-3000.0,0.0002008,2]
[374315094,1753272647695,-3000.0,0.0002009,2]
[374315096,1753272647705,-3000.0,0.000201,2]
[374315098,1753272647713,-151.0,0.000201,4]
[374315100,1753272647723,-3000.0,0.0002011,2]
[374315102,1753272647731,-3000.0,0.0002012,2]
[374315103,1753272647741,-3000.0,0.0002013,2]
[374315105,1753272647750,-3000.0,0.0002014,2]
[374315107,1753272647759,-3000.0,0.0002015,2]
[374315109,1753272647769,-3000.0,0.0002016,2]
[374315111,1753272647778,-900.0,0.00020168,2]
[374315113,1753272647787,-3000.0,0.0002017,2]
[374315115,1753272647796,-3000.0,0.0002018,2]
[374315117,1753272647805,-529.356696,0.00020187,2]
[374315119,1753272647815,-3000.0,0.0002019,2]
[374315121,1753272647824,-3000.0,0.000202,2]
[374315123,1753272647833,-151.0,0.000202,4]
[374315125,1753272647842,-3000.0,0.0002021,2]
[374315127,1753272647851,-3000.0,0.0002022,2]
[374315129,1753272647862,-3000.0,0.0002023,2]
[374315131,1753272647872,-3000.0,0.0002024,2]
[374315133,1753272647881,-3000.0,0.0002025,2]
[374315135,1753272647892,-3000.0,0.0002026,2]
[374315137,1753272647901,-1500.0,0.00020268,2]
[374315139,1753272647910,-1500.0,0.00020268,2]
[374315141,1753272647920,-769.13532546,0.00020268,2]
[374315143,1753272647929,-1507.57266618,0.00020268,2]
[374315145,1753272647938,-1500.0,0.00020268,2]
[374315147,1753272647946,-3000.0,0.0002027,2]
[374315148,1753272647955,-250.42189344,0.00020273,2]
[374315150,1753272647965,-460.0,0.00020273,2]
[374315153,1753272647975,-460.0,0.00020273,2]
[374315154,1753272647984,-383.53953217,0.00020273,2]
[374315156,1753272647994,-460.0,0.00020273,2]
[374315158,1753272648003,-460.0,0.00020273,2]
[374315160,1753272648012,-460.0,0.00020273,2]
[374315162,1753272648020,-460.0,0.00020273,2]
[374315164,1753272648029,-460.0,0.00020273,2]
[374315166,1753272648037,-460.0,0.00020273,2]
[374315168,1753272648046,-460.0,0.00020273,2]
[374315170,1753272648055,-460.0,0.00020273,2]
[374315172,1753272648065,-479.21620065,0.00020273,2]
[374315174,1753272648074,-1296.64,0.00020273,2]
[374315175,1753272648083,-460.0,0.00020273,2]
[374315177,1753272648093,-460.0,0.00020273,2]
[374315179,1753272648102,-460.0,0.00020273,2]
[374315181,1753272648112,-460.0,0.00020273,2]
[374315183,1753272648121,-460.0,0.00020273,2]
[374315185,1753272648130,-743.52,0.00020273,2]
[374315187,1753272648140,-460.0,0.00020273,2]
[374315189,1753272648149,-460.0,0.00020273,2]
[374315191,1753272648158,-575.88,0.00020273,2]
[374315193,1753272648167,-460.0,0.00020273,2]
[374315195,1753272648176,-518.21,0.00020273,2]
[374315197,1753272648185,-460.0,0.00020273,2]
[374315199,1753272648194,-460.0,0.00020273,2]
[374315200,1753272648203,-460.0,0.00020273,2]
[374315202,1753272648212,-460.0,0.00020273,2]
[374315204,1753272648222,-460.0,0.00020273,2]
[374315206,1753272648231,-541.9,0.00020273,2]
[374315208,1753272648240,-460.0,0.00020273,2]
[374315210,1753272648249,-460.0,0.00020273,2]
[374315212,1753272648258,-460.0,0.00020273,2]
[374315214,1753272648267,-460.0,0.00020273,2]
[374315216,1753272648276,-460.0,0.00020273,2]
[374315218,1753272648285,-460.0,0.00020273,2]
[374315220,1753272648295,-460.0,0.00020273,2]
[374315222,1753272648304,-460.0,0.00020273,2]
[374315224,1753272648314,-211.5186869,0.00020273,2]
[374315226,1753272648323,-602.28,0.00020273,2]
[374315228,1753272648332,-460.0,0.00020273,2]
[374315229,1753272648341,-460.0,0.00020273,2]
[374315231,1753272648351,-460.0,0.00020273,2]
[374315233,1753272648360,-478.07262341,0.00020273,2]
[374315235,1753272648369,-465.73,0.00020273,2]
[374315237,1753272648378,-460.0,0.00020273,2]
[374315239,1753272648388,-460.0,0.00020273,2]
[374315241,1753272648397,-622.8,0.00020273,2]
[374315243,1753272648407,-460.0,0.00020273,2]
[374315245,1753272648417,-461.5,0.00020273,2]
[374315247,1753272648428,-460.0,0.00020273,2]
[374315249,1753272648437,-683.42,0.00020273,2]
[374315251,1753272648447,-3164.69,0.00020273,2]
[374315253,1753272648456,-2105.65,0.00020273,2]
[374315255,1753272648466,-3752.66,0.00020273,2]
[374315257,1753272648475,-460.0,0.00020273,2]
[374315259,1753272648484,-460.0,0.00020273,2]
[374315261,1753272648494,-581.42,0.00020273,2]
[374315262,1753272648503,-460.0,0.00020273,2]
[374315264,1753272648515,-460.0,0.00020273,2]
[374315266,1753272648525,-3085.48,0.00020273,2]
[374315268,1753272648535,-460.0,0.00020273,2]
[374315270,1753272648545,-540.38,0.00020273,2]
[374315272,1753272648555,-2265.8,0.00020273,2]
[374315274,1753272648564,-10746.08,0.00020273,2]